Workbook

Sheet intro
A4: Calculates structure factors, etc., for the following monatomic cubic structures:

Sheet sc
A1: E_keV | B1: 200
A2: lambda_nm | B2: =1.24/(B1*(B1+2*511))^0.5 -> 0.002508251522
A4: A_nm | B4: 0.5
A5: B_nm | B5: 0
A7: m/m0 | B7: =1+B1/constants!C27 -> 1.391390273
A9: corrected:
A10: A_nm | B10: =B7*B4 -> 0.6956951365
A11: B_nm | B11: =B5 -> 0
A13: a_nm | B13: 0.2
A15: h | B15: 1
A16: k | B16: 0
A17: l | B17: 0
A19: g_nm^-1 | B19: =(B15^2+B16^2+B17^2)^0.5/$B13 -> 5
A20: s_nm^-1 | B20: =B19/2 -> 2.5
A21: f_nm | B21: =$B10*EXP(-$B11*B20) -> 0.6956951365
A23: F1r_nm | B23: =B21 -> 0.6956951365
A24: F1i_nm | B24: =0 -> 0
A25: |Fhkl|_nm | B25: =(B23^2+B24^2)^0.5 -> 0.6956951365
A27: v_nm^3 | B27: =B13^3 -> 0.008
A29: |Uhkl|_nm^-2 | B29: =B25/PI()/$B27 -> 27.68082996
A30: |xhkl|_nm | B30: =1/$B2/B29 -> 14.40289545

Sheet bcc
A1: E_keV | B1: 200
A2: lambda_nm | B2: =1.24/(B1*(B1+2*511))^0.5 -> 0.002508251522
A4: A_nm | B4: 0.5
A5: B_nm | B5: 0
A7: m/m0 | B7: =1+B1/constants!C27 -> 1.391390273
A9: corrected:
A10: A_nm | B10: =B7*B4 -> 0.6956951365
A11: B_nm | B11: =B5 -> 0
A13: a_nm | B13: 0.287
A15: h | B15: 1
A16: k | B16: 0
A17: l | B17: 0
A19: g_nm^-1 | B19: =(B15^2+B16^2+B17^2)^0.5/$B13 -> 3.484320557
A20: s_nm^-1 | B20: =B19/2 -> 1.742160279
A21: f_nm | B21: =$B10*EXP(-$B11*B20) -> 0.6956951365
A23: F1r_nm | B23: =B21*(1+COS(PI()*(B15+B16+B17))) -> 0
A24: F1i_nm | B24: =B21*SIN(PI()*(B15+B16+B17)) -> 8.523298215e-17
A25: |Fhkl|_nm | B25: =(B23^2+B24^2)^0.5 -> 8.523298215e-17
A27: v_nm^3 | B27: =B13^3 -> 0.023639903
A29: |Uhkl|_nm^-2 | B29: =B25/PI()/$B27 -> 1.147657029e-15
A30: |xhkl|_nm | B30: =1/$B2/B29 -> 3.473895856e+17

Sheet fcc
A1: E_keV | B1: 200
A2: lambda_nm | B2: =1.24/(B1*(B1+2*511))^0.5 -> 0.002508251522
A4: A_nm | B4: 0.5
A5: B_nm | B5: 0
A7: m/m0 | B7: =1+B1/constants!C27 -> 1.391390273
A9: corrected:
A10: A_nm | B10: =B7*B4 -> 0.6956951365
A11: B_nm | B11: =B5 -> 0
A13: a_nm | B13: 0.362
A15: h | B15: 2
A16: k | B16: 0
A17: l | B17: 0
A19: g_nm^-1 | B19: =(B15^2+B16^2+B17^2)^0.5/$B13 -> 5.524861878
A20: s_nm^-1 | B20: =B19/2 -> 2.762430939
A21: f_nm | B21: =$B10*EXP(-$B11*B20) -> 0.6956951365
A23: F1r_nm | B23: =B21*(1+COS(PI()*(B16+B17))+COS(PI()*(B15+B17))+COS(PI()*(B15+B16))) -> 2.782780546
A24: F1i_nm | B24: =B21*(SIN(PI()*(B16+B17))+SIN(PI()*(B15+B17))+SIN(PI()*(B15+B16))) -> -3.409319286e-16
A25: |Fhkl|_nm | B25: =(B23^2+B24^2)^0.5 -> 2.782780546
A27: v_nm^3 | B27: =B13^3 -> 0.047437928
A29: |Uhkl|_nm^-2 | B29: =B25/PI()/$B27 -> 18.67253896
A30: |xhkl|_nm | B30: =1/$B2/B29 -> 21.35135991

Sheet constants
A1: Fundamental Constants:
A2: Description
A3: Planck constant | B3: h (J.s) | C3: 6.62606876e-34 | E3: h (eV.s) | F3: 4.135667273e-15
A4: speed of light | B4: c (m/s) | C4: 299792458
A5: fundamental electric charge | B5: e (C) | C5: 1.602176462e-19
A6: Boltzmann constant | B6: kB (J/K) | C6: 1.3806503e-23 | E6: kB (eV/K) | F6: 8.617342301e-05
A7: electron mass | B7: m0 (kg) | C7: 9.10938188e-31
A8: Avagodro number | B8: NA (1/mole) | C8: 6.0221415e+23
A9: permitivitty of free space | B9: eps0 (F/m) | C9: 8.854187817e-12
A13: Derived Constants:
A14: Description
A15: room temp. thermal energy | B15: kB·(300K) (eV) | C15: 0.0258520269
A16: Planck constant x speed of light | B16: h·c (eV·nm) | C16: 1239.841857
A17: Planck constant x speed of light | B17: h·c (KeV·nm) | C17: 1.239841857
A18: Planck constant x speed of light | B18: h·c (eV·m) | C18: 1.239841857e-06
A19: universal gas constant | B19: R (J/mol/K) | C19: 8.314471469
A20: Faraday Constant | B20: F (C/mol) | C20: 96485.33362
A21: Stefan Constant | B21: ss (W.m^2/K) | C21: 5.670399344e-08
A22: h_bar | C22: 1.054571596e-34
A23: Bohr Radius | B23: a0 (m) | C23: 5.291772086e-11
A24: Rydberg | C24: 2.179871902e-18
A25: electron rest-mass energy | B25: m0·c^2 (J) | C25: 8.18710414e-14
A26: electron rest-mass energy | B26: m0·c^2 (eV) | C26: 510998.9027
A27: electron rest-mass energy | B27: m0·c^2 (KeV) | C27: 510.9989027
A28: quantum of conductance | B28: G0 (1/ohm) | C28: 3.874045846e-05
A29: inverse quantum of conductance | B29: 1/G0 (Kohm) | C29: 25.81280759
A30: room temp. thermal energy (300K) | B30: kBT | C30: 0.0258520269
A31: fine structure constant | B31: a | C31: 0.00729735253 | E31: 1/a | F31: 137.0359998
